fUSD/lending_fUSD_20250225
["ID","MTS","AMOUNT","RATE_DAILY","PERIOD"]
[354369112,1740454247526,-500.0,0.000195,2]
[354369113,1740454247535,-684.87052648,0.000195,2]
[354369114,1740454247545,-1730.20195374,0.000195,2]
[354369115,1740454247559,-5510.5999,0.000195,2]
[354369116,1740454247571,-12911.00893197,0.000195,2]
[354369117,1740454247581,-503.75407807,0.000195,2]
[354369118,1740454247590,-1000.0,0.000195,2]
[354369119,1740454247600,-1000.0,0.000195,2]
[354369120,1740454247609,-291.13700396,0.000195,2]
[354369121,1740454247620,-708.86299604,0.000195,2]
[354369122,1740454247629,-1000.0,0.000195,2]
[354369123,1740454247640,-76.13700396,0.000195,2]
[354369124,1740454247651,-923.86299604,0.000195,2]
[354369125,1740454247661,-500.0,0.000195,2]
[354369126,1740454247670,-405.73710396,0.000195,2]
[354369127,1740454247683,-594.26289604,0.000195,2]
[354369128,1740454247692,-501.28965455,0.000195,2]
[354369129,1740454247702,-1000.0,0.000195,2]
[354369130,1740454247712,-1000.0,0.000195,2]
[354369131,1740454247721,-1000.0,0.000195,2]
[354369132,1740454247731,-82.44747341,0.000195,2]
[354369133,1740454247742,-917.55252659,0.000195,2]
[354369134,1740454247752,-1000.0,0.000195,2]
[354369135,1740454247762,-1000.0,0.000195,2]
[354369136,1740454247771,-1416.87107586,0.000195,2]
[354369137,1740454247781,-500.0,0.000195,2]
[354369138,1740454247790,-500.0,0.000195,2]
[354369139,1740454247799,-500.0,0.000195,2]
[354369140,1740454247809,-501.65090642,0.000195,2]
[354369141,1740454247818,-500.0,0.000195,2]
[354369142,1740454247828,-500.0,0.000195,2]
[354369143,1740454247837,-500.0,0.000195,2]
[354369144,1740454247847,-809.4107858,0.000195,2]
[354369145,1740454247856,-505.3007327,0.000195,2]
[354369146,1740454247865,-500.0,0.000195,2]
[354369147,1740454247880,-404.31397013,0.000195,2]
[354369148,1740454247891,-95.68602987,0.000195,2]
[354369149,1740454247901,-500.0,0.000195,2]
[354369150,1740454247911,-500.0,0.000195,2]
[354369151,1740454247921,-500.0,0.000195,2]
[354369152,1740454247931,-500.0,0.000195,2]
[354369153,1740454247940,-500.0,0.000195,2]
[354369154,1740454247950,-500.0,0.000195,2]
[354369155,1740454247959,-500.0,0.000195,2]
[354369156,1740454247968,-500.0,0.000195,2]
[354369157,1740454247977,-500.0,0.000195,2]
[354369158,1740454247987,-500.0,0.000195,2]
[354369159,1740454247996,-500.0,0.000195,2]
[354369160,1740454248006,-500.0,0.000195,2]
[354369161,1740454248015,-500.0,0.000195,2]
[354369162,1740454248025,-500.0,0.000195,2]
[354369163,1740454248035,-509.09461656,0.000195,2]
[354369164,1740454248044,-500.0,0.000195,2]
[354369165,1740454248054,-513.05128908,0.000195,2]
[354369166,1740454248064,-207.56806449,0.000195,2]
[354369167,1740454248075,-292.43193551,0.000195,2]
[354369168,1740454248085,-500.0,0.000195,2]
[354369169,1740454248095,-500.0,0.000195,2]
[354369170,1740454248105,-500.0,0.000195,2]
[354369171,1740454248115,-500.0,0.000195,2]
[354369172,1740454248124,-500.0,0.000195,2]
[354369173,1740454248133,-604.6806648,0.000195,2]
[354369174,1740454248143,-151.293271,0.000195,2]
[354369175,1740454248152,-151.0,0.000195,2]
[354369176,1740454248166,-151.39661,0.000195,2]
[354369177,1740454248176,-151.0,0.000195,2]
[354369178,1740454248185,-151.0,0.000195,2]
[354369179,1740454248195,-151.0,0.000195,2]
[354369180,1740454248204,-174.59763869,0.000195,2]
[354369181,1740454248216,-5.91375531,0.000195,2]
[354369182,1740454248225,-151.0,0.000195,2]
[354369183,1740454248234,-182.403836,0.000195,2]
[354369184,1740454248244,-182.403836,0.000195,2]
[354369185,1740454248255,-151.0,0.000195,2]
[354369186,1740454248264,-151.0,0.000195,2]
[354369187,1740454248273,-151.0,0.000195,2]
[354369188,1740454248282,-151.0,0.000195,2]
[354369189,1740454248291,-151.0,0.000195,2]
[354369190,1740454248300,-164.479708,0.000195,2]
[354369191,1740454248310,-164.479708,0.000195,2]
[354369192,1740454248319,-151.0,0.000195,2]
[354369193,1740454248327,-151.0,0.000195,2]
[354369194,1740454248337,-151.0,0.000195,2]
[354369195,1740454248348,-155.958885,0.000195,2]
[354369196,1740454248358,-155.958885,0.000195,2]
[354369197,1740454248368,-500.0,0.00019521,2]
[354369198,1740454248378,-972.40138679,0.0001961,2]
[354369199,1740454248390,-2321.53891007,0.0001961,2]
[354369200,1740454248400,-500.0,0.00019621,2]
[354369201,1740454248410,-2815.0,0.000197,2]
[354369202,1740454248419,-143.26110993,0.00019721,2]
[354369203,1740454248439,-356.73889007,0.00019721,2]
[354369204,1740454248448,-152.787976,0.00019726,2]
[354369205,1740454248458,-151.0,0.00019726,2]
[354369206,1740454248468,-0.3643765,0.00019726,2]
[354369207,1740454248480,-150.6356235,0.00019726,2]
[354369208,1740454248489,-42036.74235693,0.00019726,2]
[354369209,1740454248498,-500.0,0.00019821,2]
[354369210,1740454248508,-1000.0,0.00019861,2]
[354369211,1740454248518,-1313.91975155,0.00019878,2]
[354369212,1740454248527,-1313.91975152,0.00019878,2]
[354369213,1740454248537,-500.0,0.00019921,2]
[354369214,1740454248547,-152.11,0.00019961,2]
[354369215,1740454248557,-200.27420218,0.0001999,2]
[354369216,1740454248567,-12701.7977984,0.00019999,2]
[354369413,1740455432100,-620.0,9.9e-05,2]
[354369414,1740455432111,-17589.7273,9.9e-05,2]
[354369415,1740455432120,-500.0,0.0001089,2]
[354369416,1740455432130,-150.0,0.0001089,2]
[354369417,1740455432140,-500.0,0.0001089,2]
[354369418,1740455432150,-150.0,0.0001089,2]
[354369419,1740455432159,-2324.13334047,0.000122,2]
[354369420,1740455432168,-150.0,0.00012384,2]
[354369421,1740455432177,-500.0,0.000124,2]
[354369422,1740455432187,-150.0,0.000124,2]
[354369423,1740455432196,-502.70782588,0.000127,2]
[354369424,1740455432206,-250.0,0.00013701,2]
[354369425,1740455432215,-1465.0,0.00015,2]
[354369426,1740455432224,-150.99,0.00015,2]
[354369427,1740455432234,-394.91,0.00015,2]
[354369428,1740455432244,-194.76,0.00015,2]
[354369429,1740455432253,-999.99,0.00015,2]
[354369430,1740455432263,-7879.42,0.00015,2]
[354369431,1740455432273,-9882.76,0.00015,2]
[354369432,1740455432282,-232.0,0.000151,2]
[354369433,1740455432292,-367.0,0.000151,2]
[354369434,1740455432302,-748.0,0.000151,2]
[354369435,1740455432311,-444.04,0.00016247,2]
[354369436,1740455432321,-200.0,0.00018138,2]
[354369437,1740455432331,-2000.0,0.00018162,2]
[354369438,1740455432340,-1000.0,0.0001834,2]
[354369439,1740455432349,-252.25,0.00018413,2]
[354369440,1740455432358,-444.04,0.00018511,2]
[354369441,1740455432367,-150.0,0.00018581,2]
[354369442,1740455432377,-152.11,0.00018589,2]
[354369443,1740455432386,-1500.0,0.00018635,2]
[354369444,1740455432395,-30000.0,0.00018886,2]
[354369445,1740455432404,-840.0,0.00018915,2]
[354369446,1740455432413,-23900.0,0.00018916,2]
[354369447,1740455432422,-250.0,0.00018954,2]
[354369448,1740455432431,-419.1682,0.00018959,2]
[354369449,1740455432440,-1000.0,0.00018999,2]
[354369450,1740455432449,-1000.0,0.00018999,2]
[354369451,1740455432459,-1000.0,0.00018999,2]
[354369452,1740455432468,-272.0,0.00018999,2]
[354369453,1740455432477,-500.0,0.00018999,7]
[354369454,1740455432486,-500.0,0.00018999,7]
[354369455,1740455432495,-500.0,0.00018999,7]
[354369456,1740455432504,-500.0,0.00018999,7]
[354369457,1740455432515,-500.0,0.00018999,7]
[354369459,1740455432524,-500.0,0.00018999,7]
[354369461,1740455432533,-500.0,0.00018999,7]
[354369463,1740455432542,-500.0,0.00018999,7]
[354369465,1740455432551,-500.0,0.00018999,7]
[354369467,1740455432560,-500.0,0.00018999,7]
[354369468,1740455432570,-500.0,0.00018999,7]
[354369470,1740455432584,-500.0,0.00018999,7]
[354369472,1740455432594,-500.0,0.00018999,7]
[354369474,1740455432604,-500.0,0.00018999,7]
[354369476,1740455432614,-500.0,0.00018999,7]
[354369478,1740455432624,-500.0,0.00018999,7]
[354369480,1740455432634,-500.0,0.00018999,7]
[354369482,1740455432643,-500.0,0.00018999,7]
[354369484,1740455432652,-500.0,0.00018999,7]
[354369486,1740455432662,-500.0,0.00018999,7]
[354369488,1740455432671,-500.0,0.00018999,7]
[354369490,1740455432681,-500.0,0.00018999,7]
[354369492,1740455432690,-500.0,0.00018999,7]
[354369494,1740455432699,-500.0,0.00018999,7]
[354369496,1740455432709,-500.0,0.00018999,7]
[354369498,1740455432718,-500.0,0.00018999,7]
[354369500,1740455432728,-500.0,0.00018999,7]
[354369502,1740455432738,-500.0,0.00018999,7]
[354369504,1740455432747,-500.0,0.00018999,7]
[354369506,1740455432756,-500.0,0.00018999,7]
[354369508,1740455432765,-500.0,0.00018999,7]
[354369510,1740455432775,-500.0,0.00018999,7]
[354369512,1740455432784,-500.0,0.00018999,7]
[354369514,1740455432793,-271.13,0.00018999,7]
[354369515,1740455432803,-2028.0,0.00019026,2]
[354369516,1740455432812,-580.003,0.00019026,2]
[354369517,1740455432821,-150.286,0.00019026,2]
[354369518,1740455432830,-557.378,0.00019026,2]
[354369519,1740455432839,-1111.0,0.00019026,2]
[354369520,1740455432848,-540.0,0.00019026,2]
[354369521,1740455432857,-150.981,0.00019026,2]
[354369522,1740455432867,-250.0,0.00019026,2]
[354369523,1740455432876,-1874.343,0.00019026,2]
[354369524,1740455432885,-2441.331,0.00019275,2]
[354369525,1740455432895,-500.0,0.00019275,2]
[354369526,1740455432904,-170.57785357,0.00019275,2]
[354369527,1740455432913,-221.0,0.000194,2]
[354369528,1740455432922,-1099.46523889,0.00019451,2]
[354369529,1740455432931,-589.56,0.00019452,2]
[354369530,1740455432941,-2000.0,0.00019452,2]
[354369531,1740455432950,-2815.64729437,0.000197,2]
[354369532,1740455432960,-328.12,0.00019711,30]
[354369533,1740455432970,-1000.0,0.00019719,2]
[354369534,1740455432979,-150.0,0.00019796,2]
[354369535,1740455432988,-22636.827944,0.000198,2]
[354369536,1740455432998,-224.32771607,0.000198,2]
[354369537,1740455433007,-150.0,0.00019805,2]
[354369538,1740455433017,-150.0,0.00019841,2]
[354369539,1740455433026,-150.0,0.00019857,2]
[354369540,1740455433035,-1000.0,0.0001989,2]
[354369541,1740455433044,-964.64,0.0001989,2]
[354369542,1740455433054,-1138.73045142,0.00019893,2]
[354369543,1740455433063,-321.14404675,0.00019893,2]
[354369544,1740455433072,-163.39501262,0.00019893,2]
[354369545,1740455433082,-436.89950445,0.000199,2]
[354369546,1740455433091,-7500.0,0.000199,2]
[354369547,1740455433101,-2000.0,0.000199,2]
[354369548,1740455433110,-1000.0,0.00019907,2]
[354369549,1740455433120,-150.0,0.00019923,2]
[354369550,1740455433130,-150.0,0.00019925,2]
[354369551,1740455433139,-150.0,0.00019927,2]
[354369552,1740455433149,-1000.0,0.00019928,2]
[354369553,1740455433159,-150.0,0.00019928,2]
[354369554,1740455433169,-40044.0,0.00019973,2]
[354369555,1740455433179,-503.73200922,0.00019973,2]
[354369556,1740455433190,-152.19561498,0.00019973,2]
[354369557,1740455433199,-201.78103123,0.00019988,2]
[354369558,1740455433210,-22154.87498,0.00019989,2]
[354369559,1740455433219,-1359.06193725,0.00019989,2]
[354369560,1740455433230,-328.06,0.00019989,2]
[354369561,1740455433240,-328.06,0.00019989,2]
[354369562,1740455433249,-328.06,0.00019989,2]
[354369563,1740455433259,-328.06,0.00019989,2]
[354369564,1740455433269,-328.06,0.00019989,2]
[354369565,1740455433278,-328.06,0.00019989,2]
[354369566,1740455433288,-328.06,0.00019989,2]
[354369567,1740455433298,-328.06,0.00019989,2]
[354369568,1740455433307,-328.06,0.00019989,2]
[354369569,1740455433317,-328.06,0.00019989,2]
[354369570,1740455433327,-328.06,0.00019989,2]
[354369571,1740455433337,-328.06,0.00019989,2]
[354369572,1740455433346,-328.06,0.00019989,2]
[354369573,1740455433356,-328.06,0.00019989,2]
[354369574,1740455433365,-328.06,0.00019989,2]
[354369575,1740455433376,-328.06,0.00019989,2]
[354369576,1740455433385,-328.06,0.00019989,2]
[354369577,1740455433394,-328.06,0.00019989,2]
[354369578,1740455433404,-328.06,0.00019989,2]
[354369579,1740455433603,-55480.26070458,0.0001999,2]
[354369580,1740455433613,-181669.974836,0.0001999,2]
[354369581,1740455433623,-328.06,0.0001999,2]
[354369582,1740455433633,-328.06,0.0001999,2]
[354369583,1740455433643,-328.06,0.0001999,2]
[354369584,1740455433653,-328.06,0.0001999,2]
[354369585,1740455433664,-328.06,0.0001999,2]
[354369586,1740455433674,-328.06,0.0001999,2]
[354369587,1740455433684,-328.06,0.0001999,2]
[354369588,1740455433694,-328.06,0.0001999,2]
[354369589,1740455433704,-1159.5277723,0.00019993,2]
[354369590,1740455433714,-3242.6364908,0.00019993,2]
[354369591,1740455433724,-2407.8677707,0.00019993,2]
[354369592,1740455433733,-1081.3797667,0.00019993,2]
[354369593,1740455433742,-280.3037213,0.00019993,2]
[354369594,1740455433752,-1021.8434556,0.00019993,2]
[354369595,1740455433762,-150.0,0.00019995,2]
[354369596,1740455433771,-500.0,0.00019998,2]
[354369597,1740455433781,-165.92090075,0.00019998,2]
[354369598,1740455433790,-505.76264443,0.00019998,2]
[354369599,1740455433799,-501.32021046,0.00019998,2]
[354369600,1740455433809,-500.0,0.00019998,2]
[354369601,1740455433818,-500.0,0.00019998,2]
[354369602,1740455433828,-500.0,0.00019998,2]
[354369603,1740455433837,-500.0,0.00019998,2]
[354369604,1740455433847,-308.26592547,0.00019998,2]
[354369605,1740455433856,-300.0,0.00019998,2]
[354369606,1740455433865,-666.0,0.00019998,2]
[354369607,1740455433875,-300.0,0.00019998,2]
[354369608,1740455433885,-300.0,0.00019999,2]
[354369609,1740455433894,-668.39351791,0.00019999,2]
[354369610,1740455433904,-300.0,0.00019999,2]
[354369611,1740455433913,-666.0,0.00019999,2]
[354369612,1740455433922,-300.0,0.00019999,2]
[354369613,1740455433933,-666.0,0.00019999,2]
[354369614,1740455433942,-300.0,0.00019999,2]
[354369615,1740455433952,-300.0,0.00019999,2]
[354369616,1740455433961,-666.0,0.00019999,2]
[354369617,1740455433970,-1000.0,0.00019999,2]
[354369618,1740455433980,-1000.0,0.00019999,2]
[354369619,1740455433989,-1000.0,0.00019999,2]
[354369620,1740455433999,-1000.0,0.00019999,2]
[354369621,1740455434009,-1000.0,0.00019999,2]
[354369622,1740455434019,-1000.0,0.00019999,2]
[354369623,1740455434028,-1000.0,0.00019999,2]
[354369624,1740455434038,-1000.0,0.00019999,2]
[354369625,1740455434047,-1000.0,0.00019999,2]
[354369626,1740455434057,-1000.0,0.00019999,2]
[354369627,1740455434067,-1000.0,0.00019999,2]
[354369628,1740455434077,-1000.0,0.00019999,2]
[354369629,1740455434087,-1000.0,0.00019999,2]
[354369630,1740455434096,-1000.0,0.00019999,2]
[354369631,1740455434105,-1000.0,0.00019999,2]
[354369632,1740455434114,-1000.0,0.00019999,2]
[354369633,1740455434123,-1000.0,0.00019999,2]
[354369634,1740455434132,-1000.0,0.00019999,2]
[354369635,1740455434142,-1000.0,0.00019999,2]
[354369636,1740455434151,-1000.0,0.00019999,2]
[354369637,1740455434160,-1000.0,0.00019999,2]
[354369638,1740455434169,-1000.0,0.00019999,2]
[354369639,1740455434179,-1000.0,0.00019999,2]
[354369640,1740455434189,-1000.0,0.00019999,2]
[354369641,1740455434198,-1000.0,0.00019999,2]
[354369642,1740455434208,-1000.0,0.00019999,2]
[354369643,1740455434218,-1000.0,0.00019999,2]
[354369644,1740455434227,-1000.0,0.00019999,2]
[354369645,1740455434237,-1000.0,0.00019999,2]
[354369646,1740455434246,-1000.0,0.00019999,2]
[354369647,1740455434256,-1000.0,0.00019999,2]
[354369648,1740455434265,-500.0,0.00019999,2]
[354369649,1740455434275,-300.0,0.00019999,2]
[354369650,1740455434285,-300.0,0.00019999,2]
[354369651,1740455434295,-668.39579889,0.00019999,2]
[354369652,1740455434305,-300.0,0.00019999,2]
[354369653,1740455434315,-666.0,0.00019999,2]
[354369654,1740455434324,-300.0,0.00019999,2]
[354369655,1740455434334,-300.0,0.00019999,2]
[354369656,1740455434343,-666.0,0.00019999,2]
[354369657,1740455434352,-300.0,0.00019999,2]
[354369658,1740455434362,-697.7631628,0.00019999,2]
[354369659,1740455434371,-19934.24661484,0.00019999,2]
[354369660,1740455434381,-500.0,0.00019999,2]
[354369661,1740455434390,-1559.103,0.00019999,2]
[354369662,1740455434399,-155.0,0.00019999,2]
[354369663,1740455434409,-155.0,0.00019999,2]
[354369664,1740455434419,-155.0,0.00019999,2]
[354369665,1740455434440,-185.88633071,0.00019999,2]
[354369666,1740455434462,-1968.30019588,0.00019999,5]
[354369667,1740455434472,-434569.15121143,0.00019999,7]
[354369668,1740455434513,-11335.58708668,0.00019999,7]
[354369669,1740455434524,-1642.207916,0.00019999,7]
[354369670,1740455434535,-11068.43774804,0.00019999,7]
[354369671,1740455434561,-3819.72515186,0.00019999,7]
[354369672,1740455434573,-6773.14167211,0.00019999,7]
[354369673,1740455434588,-21053.38888587,0.00019999,7]
[354369674,1740455434599,-9257.5,0.00019999,7]
[354369675,1740455438125,-600.57538325,0.000189,2]
[354369676,1740455438136,-1018.86,0.00019026,2]
[354369677,1740455438145,-3298.22776786,0.00019999,7]
[354369678,1740455438180,-388.75457945,0.00019999,7]
[354369679,1740455438284,-4673.33157147,0.00019999,7]
[354369844,1740455440573,-10475.18820384,0.00019999,7]
[354369845,1740455440593,-892467.34862745,0.00019999,7]
[354369846,1740455440603,-206.03662712,0.0002,2]
[354369848,1740455440613,-157.18150279,0.0002,30]
[354369849,1740455440622,-165.09055852,0.0002,20]
[354369850,1740455440632,-327930.74197878,0.0002,15]
[354369851,1740455440641,-82307.41950978,0.0002,2]
[354369852,1740455440650,-2015.21920657,0.0002,10]
[354369853,1740455440660,-151.0,0.0002,2]
[354369854,1740455440670,-151.0,0.0002,2]
[354369855,1740455440679,-206.394834,0.0002,2]
[354369856,1740455440688,-500.0,0.0002,2]
[354369857,1740455440697,-500.0,0.0002,2]
[354369858,1740455440706,-500.0,0.0002,2]
[354369859,1740455440715,-719.0,0.0002,2]
[354369860,1740455440724,-151.0,0.0002,2]
[354369861,1740455440733,-151.0,0.0002,2]
[354369862,1740455440743,-151.184752,0.0002,2]
[354369863,1740455440753,-153.439225,0.0002,2]
[354369864,1740455440762,-151.0,0.0002,2]
[354369865,1740455440771,-151.24496,0.0002,2]
[354369866,1740455440781,-152.110923,0.0002,2]
[354369867,1740455440790,-274.838219,0.0002,2]
[354369868,1740455440799,-274.838219,0.0002,2]
[354369869,1740455440808,-151.135273,0.0002,2]
[354369870,1740455440817,-151.0,0.0002,2]
[354369871,1740455440826,-151.48286,0.0002,2]
[354369872,1740455440835,-151.381285,0.0002,2]
[354369873,1740455440844,-151.0,0.0002,2]
[354369874,1740455440853,-151.0,0.0002,2]
[354369875,1740455440862,-151.0,0.0002,2]
[354369876,1740455440871,-151.0,0.0002,2]
[354369877,1740455440879,-151.0,0.0002,2]
[354369878,1740455440888,-151.0,0.0002,2]
[354369879,1740455440897,-4378.8982089,0.00020007,2]
[354369880,1740455440905,-1688.4848676,0.00020007,2]
[354369881,1740455440914,-493.845746,0.00020007,2]
[354369882,1740455440923,-500.0,0.00020021,2]
[354369883,1740455440932,-500.0,0.00020121,2]
[354369884,1740455440941,-500.0,0.00020136,2]
[354369885,1740455440950,-531.2,0.00020221,2]
[354369886,1740455440959,-500.0,0.00020273,2]
[354369887,1740455440969,-500.0,0.0002041,2]
[354369888,1740455440978,-154.83,0.00020423,2]
[354369889,1740455440987,-675.43,0.00020493,2]
[354369890,1740455440995,-500.0,0.00020547,2]
[354369891,1740455441005,-1000.0,0.00020632,2]
[354369892,1740455441015,-500.0,0.00020684,2]
[354369893,1740455441024,-444.04,0.00020775,2]
[354369894,1740455441033,-890.79948042,0.000208,120]
[354369895,1740455441043,-500.0,0.00020821,2]
[354369896,1740455441052,-328.06,0.00020867,2]
[354369897,1740455441062,-2000.0,0.00020877,50]
[354369898,1740455441071,-2000.0,0.00020877,50]
[354369899,1740455441079,-2000.0,0.00020877,50]
[354369900,1740455441089,-2000.0,0.00020877,50]
[354369901,1740455441097,-2000.0,0.00020877,50]
[354369902,1740455441106,-2000.0,0.00020877,50]
[354369903,1740455441116,-2000.0,0.00020877,50]
[354369904,1740455441125,-2000.0,0.00020877,50]
[354369905,1740455441134,-2000.0,0.00020877,50]
[354369906,1740455441144,-2000.0,0.00020877,50]
[354369907,1740455441154,-2000.0,0.00020877,50]
[354369908,1740455441163,-2000.0,0.00020877,50]
[354369909,1740455441172,-2000.0,0.00020877,50]
[354369910,1740455441182,-2000.0,0.00020877,50]
[354369911,1740455441191,-2000.0,0.00020877,50]
[354369912,1740455441200,-2000.0,0.00020877,50]
[354369913,1740455441209,-2000.0,0.00020877,50]
[354369914,1740455441219,-2000.0,0.00020877,50]
[354369915,1740455441228,-2000.0,0.00020877,50]
[354369916,1740455441238,-2000.0,0.00020877,50]
[354369917,1740455441248,-300.0,0.0002088,2]
[354369918,1740455441257,-300.0,0.0002088,2]
[354369919,1740455441267,-300.0,0.0002088,2]
[354369920,1740455441276,-300.0,0.0002088,2]
[354369921,1740455441285,-151.0,0.00020881,2]
[354369922,1740455441295,-151.0,0.00020881,2]
[354369923,1740455441303,-151.0,0.00020881,2]
[354369924,1740455441313,-151.590768,0.00020881,2]
[354369925,1740455441322,-151.0,0.00020881,2]
[354369926,1740455441331,-230.815205,0.00020881,2]
[354369927,1740455441340,-151.0,0.00020881,2]
[354369928,1740455441349,-151.0,0.00020881,2]
[354369929,1740455441359,-151.36879,0.00020881,2]
[354369930,1740455441368,-218.105574,0.00020881,2]
[354369931,1740455441377,-216.730939,0.00020881,2]
[354369932,1740455441386,-151.0,0.00020881,2]
[354369933,1740455441395,-151.0,0.00020881,2]
[354369934,1740455441404,-151.0,0.00020881,2]
[354369935,1740455441413,-151.0,0.00020881,2]
[354369936,1740455441422,-153.297475,0.00020881,2]
[354369937,1740455441431,-151.0,0.00020881,2]
[354369938,1740455441440,-151.0,0.00020881,2]
[354369939,1740455441453,-151.0,0.00020881,2]
[354369940,1740455441463,-164.163453,0.00020881,2]
[354369941,1740455441473,-164.163453,0.00020881,2]
[354369942,1740455441482,-151.0,0.00020881,2]
[354369943,1740455441491,-152.431603,0.00020881,2]
[354369944,1740455441501,-151.0,0.00020881,2]
[354369945,1740455441510,-2563.768751,0.00020881,2]
[354369946,1740455441519,-151.0,0.00020881,2]
[354369947,1740455441528,-151.0,0.00020881,2]
[354369948,1740455441537,-274.838219,0.00020881,2]
[354369949,1740455441546,-151.0,0.00020881,2]
[354369950,1740455441555,-274.838219,0.00020881,2]
[354369951,1740455441564,-328.06,0.0002091,2]
[354369952,1740455441573,-328.06,0.0002091,2]
[354369953,1740455441584,-328.06,0.0002091,2]
[354369954,1740455441595,-37932.53391881,0.0002092,30]
[354369955,1740455441604,-57810.98510481,0.0002092,30]
[354369956,1740455441614,-1000.0,0.0002092,30]
[354369957,1740455441624,-151.1,0.0002092,30]
[354369958,1740455441633,-1527.97888481,0.0002092,2]
[354369959,1740455441643,-19745.90044232,0.0002092,2]
[354369960,1740455441652,-1671.48333342,0.0002092,2]
[354369961,1740455441661,-151.0,0.0002092,2]
[354369962,1740455441670,-151.665488,0.0002092,2]
[354369963,1740455441679,-151.0,0.0002092,2]
[354369964,1740455441688,-151.0,0.0002092,2]
[354369965,1740455441697,-152.548577,0.0002092,2]
[354369966,1740455441706,-276.857676,0.0002092,2]
[354369967,1740455441717,-151.0,0.0002092,2]
[354369968,1740455441726,-500.0,0.00020958,2]
[354369969,1740455441735,-550.0,0.00021,2]
[354369970,1740455441745,-1018.0,0.00021,2]
[354369971,1740455441754,-500.0,0.00021095,2]
[354369972,1740455441763,-500.0,0.00021232,2]
[354369973,1740455441772,-559.1796959,0.00021369,2]
[354369974,1740455441780,-500.0,0.00021434,2]
[354369975,1740455441789,-500.0,0.00021434,2]
[354369976,1740455441799,-200.0,0.00021618,2]
[354369977,1740455441808,-152.11,0.00021734,2]
[354369978,1740455441817,-326.637,0.00022026,2]
[354369979,1740455441826,-446.008,0.00022026,2]
[354369980,1740455441835,-150.0,0.00022026,2]
[354369981,1740455441844,-1010.0,0.00022026,2]
[354369982,1740455441853,-8170.1,0.000221,7]
[354369983,1740455441862,-5724.96,0.000221,7]
[354369984,1740455441871,-328.12,0.00022295,30]
[354369985,1740455441881,-675.43,0.00022356,2]
[354369986,1740455441890,-150.0,0.00022488,2]
[354369987,1740455442067,-150.0,0.00022488,2]
[354369988,1740455442076,-150.0,0.00022488,2]
[354369989,1740455442086,-150.31145637,0.00022488,2]
[354369990,1740455442095,-150.0,0.00022488,2]
[354369991,1740455442105,-5213.00273774,0.000225,2]
[354369992,1740455442114,-150.0,0.00022618,2]
[354369993,1740455442122,-150.171,0.00022618,2]
[354369994,1740455442131,-150.619,0.00022618,2]
[354369995,1740455442140,-213.699,0.00022618,2]
[354369996,1740455442149,-150.0,0.00022635,4]
[354369997,1740455442158,-150.0,0.00022644,4]
[354369998,1740455442167,-501.19350431,0.0002271,2]
[354369999,1740455442176,-1552.8,0.0002274,2]
[354370000,1740455442185,-150.0,0.00022765,4]